fUSD/lending_fUSD_20251211
["ID","MTS","AMOUNT","RATE_DAILY","PERIOD"]
[398241745,1765450237923,-437.54385408,0.00016299,2]
[398241746,1765450237932,-500.0,0.00016299,2]
[398241747,1765450237941,-500.0,0.00016299,2]
[398241748,1765450237950,-500.0,0.00016299,2]
[398241749,1765450237960,-500.0,0.00016299,2]
[398241750,1765450237969,-500.0,0.00016299,2]
[398241751,1765450237978,-500.0,0.00016299,2]
[398241752,1765450237987,-500.0,0.00016299,2]
[398241753,1765450237996,-500.0,0.00016299,2]
[398241754,1765450238005,-500.0,0.00016299,2]
[398241755,1765450238014,-500.0,0.00016299,2]
[398241756,1765450238023,-500.0,0.00016299,2]
[398241757,1765450238032,-500.0,0.00016299,2]
[398241758,1765450238041,-500.0,0.00016299,2]
[398241759,1765450238051,-500.0,0.00016299,2]
[398241760,1765450238060,-500.0,0.00016299,2]
[398241761,1765450238070,-500.0,0.00016299,2]
[398241762,1765450238079,-500.0,0.00016299,2]
[398241763,1765450238088,-500.0,0.00016299,2]
[398241764,1765450238098,-500.0,0.00016299,2]
[398241765,1765450238108,-500.0,0.00016299,2]
[398241766,1765450238117,-500.0,0.00016299,2]
[398241767,1765450238128,-500.0,0.00016299,2]
[398241768,1765450238137,-500.0,0.00016299,2]
[398241769,1765450238147,-500.0,0.00016299,2]
[398241770,1765450238156,-500.0,0.00016299,2]
[398241771,1765450238166,-500.0,0.00016299,2]
[398241772,1765450238176,-515.43415012,0.00016299,2]
[398241773,1765450238186,-500.0,0.00016299,2]
[398241774,1765450238196,-500.0,0.00016299,2]
[398241775,1765450238206,-534.06764319,0.00016299,2]
[398241776,1765450238215,-500.0,0.00016299,2]
[398241777,1765450238224,-500.0,0.00016299,2]
[398241778,1765450238234,-500.0,0.00016299,2]
[398241779,1765450238243,-500.0,0.00016299,2]
[398241780,1765450238253,-500.0,0.00016299,2]
[398241781,1765450238262,-584.36925998,0.00016299,2]
[398241782,1765450238272,-267.80865257,0.00016299,2]
[398241783,1765450238280,-266.95511171,0.00016299,2]
[398241784,1765450238289,-454.17789501,0.00016299,2]
[398241785,1765450238299,-500.0,0.00016299,2]
[398241786,1765450238308,-275.51350717,0.00016299,2]
[398241787,1765450238317,-500.0,0.00016299,2]
[398241788,1765450238326,-883.64899521,0.00016299,2]
[398241789,1765450238335,-500.0,0.00016299,2]
[398241790,1765450238345,-883.64899521,0.00016299,2]
[398241791,1765450238355,-163.07995844,0.00016299,2]
[398241792,1765450238364,-883.64899521,0.00016299,2]
[398241793,1765450238374,-883.64899521,0.00016299,2]
[398241794,1765450238384,-883.64899521,0.00016299,2]
[398241795,1765450238393,-883.64899521,0.00016299,2]
[398241796,1765450238403,-883.64899521,0.00016299,2]
[398241797,1765450238411,-883.64899521,0.00016299,2]
[398241798,1765450238420,-883.64899521,0.00016299,2]
[398241799,1765450238430,-883.64899521,0.00016299,2]
[398241800,1765450238440,-883.64899521,0.00016299,2]
[398241801,1765450238449,-883.64899521,0.00016299,2]
[398241802,1765450238458,-883.64899521,0.00016299,2]
[398241803,1765450238467,-883.64899521,0.00016299,2]
[398241804,1765450238477,-883.64899521,0.00016299,2]
[398241805,1765450238486,-883.64899521,0.00016299,2]
[398241806,1765450238495,-883.64899521,0.00016299,2]
[398241807,1765450238505,-883.64899521,0.00016299,2]
[398241808,1765450238514,-883.64899521,0.00016299,2]
[398241809,1765450238523,-883.64899521,0.00016299,2]
[398241810,1765450238532,-883.64899521,0.00016299,2]
[398241811,1765450238541,-883.64899521,0.00016299,2]
[398241812,1765450238550,-883.64899521,0.00016299,2]
[398241813,1765450238559,-883.64899521,0.00016299,2]
[398241814,1765450238569,-883.64899521,0.00016299,2]
[398241815,1765450238578,-883.64899521,0.00016299,2]
[398241816,1765450238587,-883.64899521,0.00016299,2]
[398241817,1765450238597,-883.64899521,0.00016299,2]
[398241818,1765450238608,-883.64899521,0.00016299,2]
[398241819,1765450238619,-883.64899521,0.00016299,2]
[398241820,1765450238629,-883.64899521,0.00016299,2]
[398241821,1765450238638,-883.64899521,0.00016299,2]
[398241822,1765450238647,-883.64899521,0.00016299,2]
[398241823,1765450238659,-883.64899521,0.00016299,2]
[398241824,1765450238669,-883.64899521,0.00016299,2]
[398241825,1765450238678,-883.64899521,0.00016299,2]
[398241826,1765450238688,-883.64899521,0.00016299,2]
[398241827,1765450238698,-1033.64899522,0.00016299,2]
[398241828,1765450238707,-1033.64899522,0.00016299,2]
[398241829,1765450238716,-1033.64899522,0.00016299,2]
[398241830,1765450238725,-1033.64899522,0.00016299,2]
[398241831,1765450238734,-1033.64899522,0.00016299,2]
[398241832,1765450238745,-1033.64899522,0.00016299,2]
[398241833,1765450238754,-1033.64899522,0.00016299,2]
[398241834,1765450238764,-1033.64899522,0.00016299,2]
[398241835,1765450238773,-1033.64899522,0.00016299,2]
[398241836,1765450238782,-927.97,0.00016299,2]
[398241837,1765450238791,-504.71811745,0.00016299,2]
[398241838,1765450238800,-760000.0,0.000163,2]
[398241839,1765450238809,-1000.0,0.000163,2]
[398241840,1765450238818,-2500.0,0.000163,2]
[398241841,1765450238827,-200.0,0.00016318,2]
[398241842,1765450238838,-539.0,0.00016327,2]
[398241843,1765450238848,-150.0,0.00016349,2]
[398241844,1765450238858,-150.0,0.00016349,2]
[398241845,1765450238869,-150.0,0.00016349,2]
[398241846,1765450238879,-151.0,0.00016367,2]
[398241847,1765450238888,-104947.77081142,0.0001637,2]
[398241848,1765450238898,-200.0,0.00016377,2]
[398241849,1765450238908,-151.0,0.00016377,2]
[398241850,1765450238917,-500.0,0.00016377,2]
[398241851,1765450238926,-500.0,0.00016377,2]
[398241852,1765450238936,-500.0,0.00016377,2]
[398241853,1765450238945,-500.0,0.00016377,2]
[398241854,1765450238954,-500.0,0.00016377,2]
[398241855,1765450238964,-500.0,0.00016377,2]
[398241856,1765450238974,-500.0,0.00016377,2]
[398241857,1765450238984,-500.0,0.00016377,2]
[398241858,1765450238995,-500.0,0.00016377,2]
[398241859,1765450239004,-500.0,0.00016377,2]
[398241860,1765450239013,-500.0,0.00016377,2]
[398241861,1765450239022,-289.58663307,0.00016377,2]
[398241862,1765450239032,-151.0,0.00016384,2]
[398241863,1765450239041,-34592.35327726,0.00016387,2]
[398241864,1765450239051,-12896.10933464,0.00016389,2]
[398241865,1765450239060,-17252.42993007,0.00016389,2]
[398241866,1765450239070,-897.81145954,0.0001639,2]
[398241867,1765450239079,-500.0,0.00016399,2]
[398241868,1765450239088,-500.0,0.00016399,2]
[398241869,1765450239098,-500.0,0.00016399,2]
[398241870,1765450239107,-500.0,0.00016399,2]
[398241871,1765450239116,-500.0,0.00016399,2]
[398241872,1765450239126,-894.9,0.00016399,2]
[398241873,1765450239136,-323447.50159289,0.000164,2]
[398241874,1765450239146,-20000.0,0.000164,2]
[398241875,1765450239156,-197.887984,0.000164,2]
[398241876,1765450239165,-151.0,0.000164,2]
[398241877,1765450239174,-151.0,0.000164,2]
[398241878,1765450239183,-1380.98566234,0.00016404,2]
[398241879,1765450239193,-150.0,0.0001642,2]
[398241880,1765450239202,-150.0,0.0001642,2]
[398241881,1765450239211,-500.0,0.00016429,2]
[398241882,1765450239221,-1000.0,0.0001643,2]
[398241883,1765450239230,-151.41,0.0001643,2]
[398241884,1765450239239,-150.2,0.0001643,2]
[398241885,1765450239249,-151.29,0.0001643,2]
[398241886,1765450239258,-16853.2,0.0001643,2]
[398241887,1765450239267,-500.0,0.00016438,2]
[398241888,1765450239277,-500.0,0.00016438,2]
[398241889,1765450239286,-500.0,0.00016438,2]
[398241890,1765450239296,-500.0,0.00016438,2]
[398241891,1765450239306,-500.0,0.00016438,2]
[398241892,1765450239316,-500.0,0.00016438,2]
[398241893,1765450239325,-500.0,0.00016438,2]
[398241894,1765450239334,-500.0,0.00016438,2]
[398241895,1765450239344,-500.0,0.00016438,2]
[398241897,1765450239353,-500.0,0.00016438,2]
[398241899,1765450239363,-500.0,0.00016438,2]
[398241900,1765450239372,-500.0,0.00016438,2]
[398241901,1765450239382,-500.0,0.00016438,2]
[398241902,1765450239392,-500.0,0.00016438,2]
[398241903,1765450239401,-500.0,0.00016438,2]
[398241905,1765450239411,-500.0,0.00016438,2]
[398241907,1765450239421,-500.0,0.00016438,2]
[398241908,1765450239430,-500.0,0.00016438,2]
[398241909,1765450239439,-500.0,0.00016438,2]
[398241910,1765450239448,-500.0,0.00016438,2]
[398241911,1765450239457,-168.8736221,0.00016438,2]
[398241912,1765450239466,-500.0,0.00016438,2]
[398241913,1765450239475,-500.0,0.00016438,2]
[398241914,1765450239483,-500.0,0.00016438,2]
[398241915,1765450239492,-500.0,0.00016438,2]
[398241916,1765450239502,-642.68144244,0.00016438,2]
[398241917,1765450239511,-500.0,0.00016438,2]
[398241918,1765450239520,-500.0,0.00016438,2]
[398241919,1765450239529,-500.0,0.00016438,2]
[398241920,1765450239540,-500.0,0.00016438,2]
[398241921,1765450239550,-500.0,0.00016438,2]
[398241922,1765450239559,-500.0,0.00016438,2]
[398241923,1765450239568,-500.0,0.00016438,2]
[398241924,1765450239577,-500.0,0.00016438,2]
[398241925,1765450239588,-500.0,0.00016438,2]
[398241926,1765450239597,-500.0,0.00016438,2]
[398241927,1765450239611,-500.0,0.00016438,2]
[398241928,1765450239621,-500.0,0.00016438,2]
[398241929,1765450239631,-642.68144244,0.00016438,2]
[398241930,1765450239640,-500.0,0.00016438,2]
[398241931,1765450239651,-500.0,0.00016438,2]
[398241932,1765450239660,-500.0,0.00016438,2]
[398241933,1765450239669,-500.0,0.00016438,2]
[398241934,1765450239678,-500.0,0.00016438,2]
[398241935,1765450239688,-500.0,0.00016438,2]
[398241936,1765450239697,-881.91178526,0.00016438,2]
[398241937,1765450239706,-881.91178526,0.00016438,2]
[398241938,1765450239715,-881.91178526,0.00016438,2]
[398241939,1765450239723,-881.91178526,0.00016438,2]
[398241940,1765450239732,-881.91178526,0.00016438,2]
[398241941,1765450239741,-881.91178526,0.00016438,2]
[398241942,1765450239750,-881.91178526,0.00016438,2]
[398241943,1765450239759,-881.91178526,0.00016438,2]
[398241944,1765450239768,-881.91178526,0.00016438,2]
[398241945,1765450239777,-881.91178526,0.00016438,2]
[398241946,1765450239786,-881.91178526,0.00016438,2]
[398241947,1765450239794,-881.91178526,0.00016438,2]
[398241948,1765450239803,-881.91178526,0.00016438,2]
[398241949,1765450239813,-881.91178526,0.00016438,2]
[398241950,1765450239822,-881.91178526,0.00016438,2]
[398241951,1765450239831,-881.91178526,0.00016438,2]
[398241952,1765450239840,-881.91178526,0.00016438,2]
[398241953,1765450239849,-881.91178526,0.00016438,2]
[398241954,1765450239858,-881.91178526,0.00016438,2]
[398241955,1765450239866,-881.91178526,0.00016438,2]
[398241956,1765450239875,-881.91178526,0.00016438,2]
[398241957,1765450239884,-881.91178526,0.00016438,2]
[398241958,1765450239893,-881.91178526,0.00016438,2]
[398241959,1765450239902,-881.91178526,0.00016438,2]
[398241960,1765450239911,-881.91178526,0.00016438,2]
[398241961,1765450239920,-881.91178526,0.00016438,2]
[398241962,1765450239928,-881.91178526,0.00016438,2]
[398241963,1765450239937,-881.91178526,0.00016438,2]
[398241964,1765450239946,-881.91178526,0.00016438,2]
[398241965,1765450239955,-881.91178526,0.00016438,2]
[398241966,1765450239964,-889.86399063,0.00016438,2]
[398241967,1765450239973,-889.86399063,0.00016438,2]
[398241968,1765450239982,-889.86399063,0.00016438,2]
[398241969,1765450239991,-889.86399063,0.00016438,2]
[398241970,1765450240000,-889.86399063,0.00016438,2]
[398241971,1765450240010,-889.86399063,0.00016438,2]
[398241972,1765450240019,-889.86399063,0.00016438,2]
[398241973,1765450240028,-889.86399063,0.00016438,2]
[398241974,1765450240037,-889.86399063,0.00016438,2]
[398241976,1765450240046,-889.86399063,0.00016438,2]
[398241978,1765450240055,-889.86399063,0.00016438,2]
[398241980,1765450240064,-889.86399063,0.00016438,2]
[398241982,1765450240074,-889.86399063,0.00016438,2]
[398241984,1765450240083,-889.86399063,0.00016438,2]
[398241986,1765450240092,-889.86399063,0.00016438,2]
[398241987,1765450240102,-500.0,0.00016438,2]
[398241988,1765450240111,-894.9,0.00016449,2]
[398241989,1765450240122,-269.906202,0.0001645,2]
[398241990,1765450240132,-200.0,0.00016481,2]
[398241991,1765450240142,-1085.60385682,0.00016482,2]
[398241992,1765450240151,-500.0,0.00016495,2]
[398241993,1765450240161,-460.45571642,0.00016495,2]
[398241994,1765450240169,-151.0,0.00016496,2]
[398241995,1765450240179,-151.0,0.00016496,2]
[398241996,1765450240188,-151.0,0.00016496,2]
[398241997,1765450240198,-151.0,0.00016496,2]
[398241998,1765450240207,-151.0,0.00016496,2]
[398241999,1765450240216,-151.0,0.00016496,2]
[398242000,1765450240226,-1755.0,0.00016523,2]
[398242001,1765450240235,-333.0,0.00016523,2]
[398242002,1765450240244,-220.58547383,0.00016529,5]
[398242003,1765450240253,-153.03,0.00016529,2]
[398242004,1765450240262,-541.96436512,0.00016529,2]
[398242005,1765450240272,-500.0,0.00016529,2]
[398242006,1765450240281,-500.0,0.00016529,2]
[398242007,1765450240290,-438956.6625113,0.00016529,2]
[398242008,1765450240299,-1936.5111687,0.00016529,2]
[398242009,1765450240308,-151.0,0.00016529,2]
[398242010,1765450240318,-151.0,0.00016529,2]
[398242011,1765450240326,-151.0,0.00016529,2]
[398242012,1765450240335,-151.0,0.00016529,2]
[398242013,1765450240344,-500.0,0.00016529,2]
[398242014,1765450240353,-500.0,0.00016529,2]
[398242015,1765450240362,-500.0,0.00016529,2]
[398242016,1765450240371,-894.9,0.00016529,2]
[398242017,1765450240380,-1000.0,0.00016529,2]
[398242018,1765450240389,-151.0,0.00016529,2]
[398242019,1765450240398,-151.0,0.00016529,2]
[398242020,1765450240407,-500.0,0.00016529,2]
[398242021,1765450240416,-500.0,0.00016529,2]
[398242022,1765450240425,-500.0,0.00016529,2]
[398242023,1765450240435,-3892.1311994,0.0001653,2]
[398242024,1765450240444,-200.0,0.0001653,2]
[398242025,1765450240453,-649.61048761,0.0001653,2]
[398242026,1765450240463,-200.0,0.0001653,2]
[398242027,1765450240472,-151.0,0.0001653,2]
[398242028,1765450240481,-151.0,0.0001653,2]
[398242029,1765450240490,-151.0,0.0001653,2]
[398242030,1765450240499,-151.0,0.0001653,2]
[398242031,1765450240508,-2000.0,0.0001653,2]
[398242032,1765450240517,-571.84,0.0001653,2]
[398242033,1765450240526,-1000.0,0.0001653,2]
[398242034,1765450240534,-299.225,0.0001653,2]
[398242035,1765450240543,-200.0,0.0001653,2]
[398242036,1765450240553,-6639.44112,0.0001653,2]
[398242037,1765450240561,-6639.44112,0.0001653,2]
[398242038,1765450240571,-6639.44113,0.0001653,2]
[398242039,1765450240580,-6639.44113,0.0001653,2]
[398242040,1765450240589,-6639.44112,0.0001653,2]
[398242041,1765450240597,-6639.44112,0.0001653,2]
[398242042,1765450240607,-151.0,0.0001653,2]
[398242043,1765450240618,-151.0,0.0001653,2]
[398242044,1765450240627,-151.0,0.0001653,2]
[398242045,1765450240636,-164.0,0.00016556,2]
[398242046,1765450240645,-372.0,0.00016556,2]
[398242047,1765450240655,-150.0,0.00016562,2]
[398242048,1765450240663,-150.0,0.00016562,2]
[398242049,1765450240673,-150.0,0.00016562,2]
[398242050,1765450240683,-150.0,0.00016562,2]
[398242051,1765450240692,-150.0,0.00016562,2]
[398242052,1765450240701,-346.0,0.00016573,2]
[398242053,1765450240710,-927.97,0.00016573,2]
[398242054,1765450240719,-12896.10933464,0.00016578,2]
[398242055,1765450240727,-17252.42993007,0.00016578,2]
[398242056,1765450240736,-421.75705975,0.00016591,2]
[398242057,1765450240745,-337.0,0.00016606,2]
[398242058,1765450240754,-151.0,0.00016606,2]
[398242059,1765450240762,-151.0,0.00016606,2]
[398242060,1765450240771,-151.0,0.00016606,2]
[398242061,1765450240780,-151.0,0.00016606,2]
[398242062,1765450240788,-151.0,0.00016606,2]
[398242063,1765450240797,-8465.6899451,0.00016608,2]
[398242064,1765450240806,-150.0,0.00016609,2]
[398242065,1765450240815,-317.0,0.00016628,2]
[398242066,1765450240824,-160.70566298,0.00016629,2]
[398242067,1765450240833,-444.65632683,0.00016629,2]
[398242068,1765450240842,-894.9,0.00016629,2]
[398242069,1765450240851,-894.9,0.00016629,2]
[398242070,1765450240860,-500.0,0.00016629,2]
[398242071,1765450240869,-10140.0,0.0001663,2]
[398242072,1765450240878,-151.0,0.0001663,2]
[398242073,1765450240887,-151.0,0.0001663,2]
[398242074,1765450240896,-151.0,0.0001663,2]
[398242075,1765450240905,-151.0,0.0001663,2]
[398242076,1765450240914,-151.0,0.0001663,2]
[398242077,1765450240922,-184.75228,0.0001663,2]
[398242078,1765450240931,-831.0,0.00016639,2]
[398242079,1765450240940,-1000.0,0.00016648,2]
[398242080,1765450240949,-13746.69119728,0.00016651,2]
[398242081,1765450240961,-151.0,0.00016651,2]
[398242082,1765450240970,-151.0,0.00016651,2]
[398242083,1765450240979,-5486.23866476,0.0001666,2]
[398242084,1765450240988,-346.77,0.00016684,2]
[398242085,1765450241154,-500.0,0.00016685,2]
[398242086,1765450241164,-500.0,0.00016685,2]
[398242087,1765450241174,-168.0,0.00016689,2]
[398242088,1765450241183,-1811.24076609,0.00016689,2]
[398242089,1765450241193,-200.0,0.00016695,2]
[398242090,1765450241202,-200.0,0.00016695,2]
[398242091,1765450241211,-200.0,0.00016695,2]
[398242092,1765450241220,-150.0,0.00016703,2]
[398242093,1765450241230,-168.27,0.00016712,2]
[398242094,1765450241239,-1811.0,0.00016733,2]
[398242095,1765450241249,-12896.10933464,0.00016767,2]
[398242096,1765450241258,-17252.42993007,0.00016767,2]
[398242097,1765450241267,-150.0,0.00016774,2]
[398242098,1765450241277,-150.0,0.00016774,2]
[398242099,1765450241297,-150.0,0.00016774,2]
[398242100,1765450241313,-150.0,0.00016798,2]
[398242101,1765450241322,-500.0,0.00016835,2]
[398242102,1765450241331,-150.0,0.00016845,2]
[398242103,1765450241340,-151.0,0.00016847,2]
[398242104,1765450241349,-151.50551,0.00016847,2]
[398242105,1765450241359,-927.97,0.00016847,2]
[398242106,1765450241368,-200.0,0.00016862,2]
[398242107,1765450241377,-200.0,0.00016862,2]
[398242108,1765450241386,-200.0,0.00016862,2]
[398242109,1765450241395,-200.0,0.00016863,2]
[398242110,1765450241405,-200.0,0.00016864,2]
[398242111,1765450241414,-200.0,0.00016864,2]
[398242112,1765450241424,-168.0,0.00016878,2]
[398242113,1765450241433,-160.683074,0.000169,2]
[398242114,1765450241442,-151.0,0.000169,2]
[398242115,1765450241451,-151.0,0.000169,2]
[398242116,1765450241460,-10000.0,0.000169,2]
[398242117,1765450241469,-2153.22366516,0.000169,2]
[398242118,1765450241478,-12896.10933464,0.00016956,2]
[398242119,1765450241487,-17252.42993007,0.00016956,2]
[398242120,1765450241496,-151.0,0.00016956,2]
[398242121,1765450241505,-242.6891,0.00016956,2]
[398242122,1765450241514,-500.0,0.00016972,2]
[398242123,1765450241523,-150.0,0.00016973,2]
[398242124,1765450241536,-150.0,0.00016973,2]
[398242125,1765450241545,-150.0,0.00016973,2]
[398242126,1765450241554,-155.07428394,0.00016973,2]
[398242127,1765450241564,-150.0,0.00016973,2]
[398242128,1765450241573,-160.78025537,0.00016973,2]
[398242129,1765450241582,-228.81809239,0.00016973,2]
[398242130,1765450241591,-150.0,0.00016973,2]
[398242131,1765450241600,-150.0,0.00016973,2]
[398242132,1765450241613,-150.0,0.00016973,2]
[398242133,1765450241623,-500.0,0.00016973,2]
[398242134,1765450241632,-150.82561092,0.00016973,2]
[398242135,1765450241641,-151.37391218,0.00016973,2]
[398242136,1765450241651,-150.0,0.00016973,2]
[398242137,1765450241661,-150.0,0.00016973,2]
[398242138,1765450241669,-150.0,0.00016973,2]
[398242139,1765450241679,-150.0,0.00016973,2]
[398242140,1765450241690,-170.21872884,0.00016973,2]
[398242141,1765450241699,-151.80963422,0.00016973,2]
[398242142,1765450241708,-202.77931937,0.00016973,2]
[398242143,1765450241717,-500.0,0.00016973,2]
[398242144,1765450241726,-150.0,0.00016973,2]
[398242145,1765450241736,-153.60065798,0.00016973,2]
[398242146,1765450241745,-500.0,0.00016973,2]
[398242147,1765450241754,-151.0906704,0.00016973,2]
[398242148,1765450241763,-500.0,0.00016973,2]
[398242149,1765450241773,-500.0,0.00016973,2]
[398242150,1765450241783,-267.97401164,0.00016973,2]
[398242151,1765450241792,-500.0,0.00016973,2]
[398242152,1765450241801,-150.0,0.00016973,2]
[398242153,1765450241810,-150.0,0.00016973,2]
[398242154,1765450241821,-500.0,0.00016973,2]
[398242155,1765450241831,-161.98232202,0.00016973,2]
[398242156,1765450241840,-150.0,0.00016973,2]
[398242157,1765450241849,-150.0,0.00016973,2]
[398242158,1765450241858,-500.0,0.00016973,2]
[398242159,1765450241867,-500.0,0.00016973,2]
[398242160,1765450241876,-500.0,0.00016973,2]
[398242161,1765450241885,-463.61392116,0.00016973,2]
[398242162,1765450241894,-500.0,0.00016973,2]
[398242163,1765450241903,-150.0,0.00016973,2]
[398242164,1765450241912,-500.0,0.00016973,2]
[398242165,1765450241921,-150.0,0.00016973,2]
[398242166,1765450241931,-150.0,0.00016973,2]
[398242167,1765450241940,-500.0,0.00016973,2]
[398242168,1765450241949,-500.0,0.00016973,2]
[398242169,1765450241959,-155.72051502,0.00016973,2]
[398242170,1765450241967,-317.0,0.00016974,2]
[398242171,1765450241976,-317.99,0.00016986,2]
[398242172,1765450241985,-150.0,0.00016986,2]
[398242173,1765450241994,-150.0,0.00016986,2]
[398242174,1765450242003,-150.0,0.00016986,2]
[398242175,1765450242012,-150.0,0.00016986,2]
[398242176,1765450242021,-150.0,0.00016986,2]
[398242177,1765450242030,-150.0,0.00016986,2]
[398242178,1765450242039,-150.0,0.00016986,2]
[398242179,1765450242048,-150.0,0.00016986,2]
[398242180,1765450242057,-150.0,0.00016986,2]
[398242181,1765450242067,-897.81145954,0.0001699,2]
[398242182,1765450242076,-1436.02605526,0.00016999,2]
[398242183,1765450242086,-894.9,0.00016999,2]
[398242184,1765450242096,-894.9,0.00016999,2]
[398242185,1765450242105,-894.9,0.00016999,2]
[398242186,1765450242114,-894.9,0.00016999,2]
[398242187,1765450242124,-894.9,0.00016999,2]
[398242188,1765450242133,-894.9,0.00016999,2]
[398242189,1765450242143,-894.9,0.00016999,2]
[398242190,1765450242152,-894.9,0.00016999,2]
[398242191,1765450242161,-894.9,0.00016999,2]
[398242192,1765450242171,-894.9,0.00016999,2]
[398242193,1765450242180,-500.0,0.00016999,2]
[398242194,1765450242189,-500.0,0.00016999,2]
[398242195,1765450242198,-500.0,0.00016999,2]
[398242196,1765450242208,-500.0,0.00016999,2]
[398242197,1765450242217,-500.0,0.00016999,2]
[398242198,1765450242226,-198.67438707,0.00016999,2]
[398242199,1765450242235,-2262168.56341348,0.00017,2]
[398242200,1765450242246,-160.0,0.00017,2]
[398242201,1765450242256,-250.0,0.00017,2]
[398242202,1765450242265,-2000.0,0.00017,2]
[398242203,1765450242275,-151.0,0.00017,2]
[398242204,1765450242284,-151.0,0.00017,2]
[398242205,1765450242293,-151.0,0.00017,2]
[398242206,1765450242302,-192.929464,0.00017,2]
[398242207,1765450242311,-151.0,0.00017,2]
[398242208,1765450242320,-170.264958,0.00017,2]
[398242209,1765450242329,-151.0,0.00017,2]
[398242210,1765450242338,-151.0,0.00017,2]
[398242211,1765450242346,-168.0,0.00017002,2]
[398242212,1765450242355,-500.0,0.00017014,2]
[398242213,1765450242364,-200.0,0.00017031,2]
[398242214,1765450242373,-200.0,0.00017031,2]
[398242216,1765450242382,-200.0,0.00017031,2]
[398242217,1765450242392,-168.0,0.00017084,2]
[398242219,1765450242401,-150.0,0.0001711,2]
[398242221,1765450242410,-150.0,0.0001711,2]
[398242222,1765450242419,-150.0,0.0001711,2]
[398242223,1765450242428,-150.0,0.0001711,2]
[398242224,1765450242436,-150.0,0.0001711,2]
[398242225,1765450242446,-150.0,0.0001711,2]
[398242226,1765450242454,-614.51278261,0.0001711,2]
[398242227,1765450242463,-227.8103482,0.0001711,2]
[398242228,1765450242472,-150.60890833,0.0001711,2]
[398242229,1765450242482,-150.0,0.0001711,2]
[398242230,1765450242491,-152.57211274,0.0001711,2]
[398242231,1765450242500,-500.0,0.0001711,2]
[398242232,1765450242510,-265.99937066,0.0001711,2]
[398242233,1765450242519,-500.0,0.0001711,2]
[398242234,1765450242529,-500.0,0.0001711,2]
[398242235,1765450242538,-500.0,0.0001711,2]
[398242236,1765450242547,-500.0,0.0001711,2]
[398242237,1765450242556,-150.0,0.0001711,2]
[398242238,1765450242566,-153.46015243,0.0001711,2]
[398242239,1765450242575,-500.0,0.0001711,2]
[398242240,1765450242584,-500.0,0.0001711,2]
[398242241,1765450242593,-500.0,0.0001711,2]
[398242242,1765450242602,-500.0,0.0001711,2]
[398242243,1765450242623,-150.0,0.0001711,2]
[398242244,1765450242635,-150.0,0.0001711,2]
[398242245,1765450242646,-500.0,0.0001711,2]
[398242246,1765450242656,-500.0,0.0001711,2]
[398242247,1765450242670,-168.0,0.00017115,2]
[398242248,1765450242680,-927.97,0.00017121,2]
[398242249,1765450242692,-12896.10933464,0.00017144,2]
[398242250,1765450242702,-17252.42993007,0.00017144,2]
[398242251,1765450242712,-500.0,0.00017151,2]
[398242252,1765450242722,-317.0,0.00017171,2]
[398242253,1765450242731,-200.0,0.00017201,2]
[398242254,1765450242740,-1218.46,0.00017232,2]
[398242255,1765450242749,-168.0,0.00017236,2]
[398242256,1765450242758,-150.0,0.00017247,2]
[398242257,1765450242767,-150.0,0.00017247,2]